bitfinex-derivatives/quotes_ETHF0:USTF0_20250902
["timestamp","ask_amount","ask_price","bid_price","bid_amount"]
[1756825772262,3.2078,4333.7,4332.4,3.2078]
[1756825772459,3.2078,4333.2,4332.4,3.2078]
[1756825772768,3.2078,4333.2,4332.5,0.254]
[1756825772964,3.2078,4333.2,4332.3,3.4618]
[1756825773370,3.2078,4333.2,4332.3,3.2078]
[1756825774276,3.2078,4332.7,4331.7,3.2078]
[1756825774571,3.2078,4332.2,4331.5,0.254]
[1756825775169,3.2078,4332.2,4330.9,33.6878]
[1756825775372,3.2078,4332.2,4331.0,0.254]
[1756825775568,3.2078,4332.2,4330.8,0.254]
[1756825775569,0.254,4332.1,4330.8,0.254]
[1756825775772,3.2078,4331.2,4330.4,0.254]
[1756825776373,3.2078,4331.2,4330.4,0.66963]
[1756825776572,3.2078,4331.2,4330.4,0.254]
[1756825777374,3.2078,4331.2,4330.4,0.66963]
[1756825777570,3.2078,4331.2,4330.5,0.254]
[1756825777766,3.2078,4331.2,4329.3,30.477]
[1756825777970,3.2078,4330.7,4329.4,3.2078]
[1756825778170,3.2078,4330.7,4327.6,5.2743501]
[1756825778171,3.2078,4329.7,4328.4,0.254]
[1756825778367,3.2078,4329.7,4328.6,3.2078]
[1756825778567,3.2078,4329.9,4328.6,3.2078]
[1756825779970,3.2078,4329.9,4328.7,0.41579]
[1756825780977,3.2078,4329.9,4328.6,3.2078]
[1756825781276,3.2078,4329.9,4328.7,0.255]
[1756825781777,3.2078,4329.9,4328.6,3.2078]
[1756825781983,0.254,4329.8,4328.1,3.2078]
[1756825782179,3.2078,4329.4,4328.2,0.254]
[1756825782380,3.2078,4329.4,4326.7,1.03996]
[1756825782381,3.2078,4328.7,4326.7,3.2078]
[1756825782579,3.2078,4327.1,4326.5,0.255]
[1756825783071,3.2078,4327.1,4326.6,3.2078]
[1756825783279,3.2078,4327.8,4326.6,3.2078]
[1756825783884,3.2078,4327.8,4326.7,0.255]
[1756825784580,3.2078,4327.8,4326.7,0.254]
[1756825784777,3.2078,4327.8,4326.6,3.2078]
[1756825785285,3.2078,4326.8,4326.2,0.254]
[1756825785683,3.2078,4327.3,4326.2,0.254]
[1756825786173,3.2078,4327.3,4326.3,3.2078]
[1756825786880,3.2078,4327.3,4326.4,0.254]
[1756825787583,3.2078,4327.3,4326.3,3.2078]
[1756825787784,3.2078,4327.3,4326.4,0.254]
[1756825790180,3.2078,4327.3,4326.5,0.254]
[1756825790377,3.2078,4327.3,4326.3,3.4618]
[1756825791078,3.2078,4327.3,4326.3,3.2078]
[1756825791385,3.2078,4327.3,4326.4,0.254]
[1756825791679,3.2078,4327.8,4326.4,0.254]
[1756825791884,3.2078,4327.8,4326.8,3.2078]
[1756825792179,3.2078,4328.3,4326.7,3.2078]
[1756825792385,3.2078,4328.3,4327.3,3.2078]
[1756825792681,3.2078,4328.3,4327.4,0.254]
[1756825793383,3.2078,4328.9,4327.4,0.254]
[1756825793582,3.2078,4328.4,4327.3,3.2078]
[1756825793787,3.2078,4328.4,4327.4,0.254]
[1756825794681,3.2078,4328.4,4327.5,0.254]
[1756825794890,3.2078,4327.9,4327.3,3.2078]
[1756825795186,3.2078,4327.9,4326.9,0.254]
[1756825795382,3.2078,4328.0,4326.9,0.254]
[1756825795685,3.2078,4328.0,4327.0,0.254]
[1756825795981,3.2078,4328.0,4327.1,0.254]
[1756825796284,3.2078,4327.4,4326.5,0.212]
[1756825796485,3.2078,4327.4,4326.4,0.212]
[1756825797783,3.2078,4328.0,4326.6,3.2078]
[1756825798085,3.2078,4327.5,4326.6,3.2078]
[1756825798981,3.2078,4327.5,4326.7,0.254]
[1756825799485,0.254,4328.5,4326.6,3.2078]
[1756825799486,3.2078,4328.0,4326.8,0.254]
[1756825799878,3.2078,4328.0,4326.9,0.253]
[1756825800481,3.2078,4328.8,4327.6,3.2078]
[1756825800686,3.2078,4328.8,4327.7,0.253]
[1756825801087,3.2078,4328.8,4327.8,40.8]
[1756825801590,3.2078,4328.8,4327.9,0.253]
[1756825802282,3.2078,4328.8,4327.8,40.8]
[1756825802488,3.2078,4328.8,4327.8,0.253]
[1756825803381,3.2078,4328.8,4327.9,0.253]
[1756825804380,3.2078,4328.8,4327.6,3.31730982]
[1756825804587,3.2078,4328.8,4328.0,0.253]
[1756825805187,0.64914192,4328.7,4328.0,0.253]
[1756825805387,0.64914192,4328.6,4328.0,0.253]
[1756825805588,3.2078,4328.8,4328.0,0.253]
[1756825805787,3.2078,4329.3,4328.2,3.2078]
[1756825805990,3.2078,4329.3,4328.1,0.253]
[1756825805991,3.2078,4329.9,4328.7,3.2078]
[1756825806186,4.43123548,4331.0,4329.4,3.2078]
[1756825806388,0.64978268,4330.9,4329.9,3.2078]
[1756825806578,0.64978268,4330.8,4329.9,3.2078]
[1756825806888,3.2078,4330.5,4329.7,0.253]
[1756825807191,0.64978268,4330.4,4329.7,3.2078]
[1756825807386,0.64978268,4330.3,4329.7,3.2078]
[1756825807591,0.64978268,4330.2,4329.7,3.4608]
[1756825807894,0.64978268,4330.1,4329.7,3.4608]
[1756825808081,0.64978268,4330.0,4329.7,0.253]
[1756825808285,0.64978268,4329.9,4328.9,0.253]
[1756825808587,0.64978268,4329.8,4328.7,3.4608]
[1756825808988,0.64978268,4329.7,4328.7,3.4608]
[1756825809189,0.64978268,4329.6,4328.7,3.2078]
[1756825809386,0.64978268,4329.5,4328.7,3.2078]
[1756825809587,0.64978268,4329.4,4328.7,3.2078]
[1756825809781,0.64978268,4329.3,4328.7,3.2078]
[1756825809985,0.64978268,4329.2,4328.7,3.2078]
[1756825810192,0.64978268,4329.1,4328.7,3.2078]
[1756825810393,0.64978268,4329.0,4328.7,3.2078]
[1756825810589,4.43123548,4330.5,4329.2,0.41574]
[1756825810793,0.65162714,4330.4,4329.8,3.2078]
[1756825810994,0.65162714,4330.3,4329.9,0.253]
[1756825811192,0.65162714,4330.2,4329.9,0.253]
[1756825811488,3.2078,4331.1,4329.9,0.66867]
[1756825811799,0.65101829,4331.0,4330.5,3.2078]
[1756825812090,3.2078,4331.1,4330.6,0.253]
[1756825812287,1.22343548,4331.9,4330.6,0.253]
[1756825812489,0.6503208,4331.8,4331.0,3.2078]
[1756825812787,3.2078,4331.6,4330.6,3.2078]
[1756825812989,3.2078,4331.1,4330.2,0.253]
[1756825813291,3.2078,4330.6,4329.9,3.4608]
[1756825813487,3.2078,4331.1,4329.9,3.4608]
[1756825813687,0.64976393,4331.0,4329.9,3.4608]
[1756825813891,3.2078,4331.1,4329.9,3.4608]
[1756825814090,0.64975223,4331.0,4329.9,3.4608]
[1756825814293,3.2078,4330.6,4330.0,0.253]
[1756825814495,3.2078,4330.6,4329.9,3.2078]
[1756825814888,0.6491873,4330.5,4329.3,40.8]
[1756825815188,3.2078,4330.1,4329.2,0.253]
[1756825815381,0.6491873,4330.0,4329.2,0.253]
[1756825815604,3.2078,4330.6,4329.2,0.253]
[1756825815791,0.64886814,4330.5,4329.1,3.2078]
[1756825815996,3.2078,4330.1,4329.2,0.253]
[1756825816294,3.2078,4330.1,4329.1,3.2078]
[1756825816295,0.64399839,4330.0,4329.1,3.2078]
[1756825816498,0.64399839,4329.9,4329.1,3.2078]
[1756825816789,0.64386245,4329.8,4329.1,3.2078]
[1756825816990,3.2078,4330.1,4329.1,3.2078]
[1756825817292,3.2078,4329.5,4328.2,0.253]
[1756825817489,3.2078,4329.0,4328.3,0.2884766]
[1756825817688,3.2078,4329.0,4328.4,0.2884766]
[1756825817884,3.2078,4329.0,4328.3,0.253]
[1756825818085,3.2078,4329.0,4328.4,0.28847414]
[1756825818283,3.2078,4329.0,4327.8,3.2078]
[1756825818484,0.253,4329.4,3850.0,1.25]
[1756825818485,3.2078,4328.5,4327.9,0.28857879]
[1756825818689,0.89609984,4328.4,4327.2,3.2078]
[1756825818885,0.64309984,4328.3,4327.3,0.28860683]
[1756825819086,0.253,4328.4,4327.4,0.28860683]
[1756825819393,0.64315613,4328.3,4327.5,0.28860683]
[1756825819592,3.2078,4327.9,4327.2,3.2078]
[1756825819796,0.64323165,4327.8,4327.2,3.2078]
[1756825819985,0.64323165,4327.7,4327.2,3.2078]
[1756825820189,3.2078,4327.9,4327.2,3.2078]
[1756825820488,0.253,4328.2,4327.2,3.2078]
[1756825820692,3.2078,4328.4,4327.2,3.2078]
[1756825820693,0.64335168,4328.1,4327.2,3.2078]
[1756825820990,3.2078,4328.4,4327.2,3.2078]
[1756825821182,0.64340293,4328.3,4327.3,0.54177375]
[1756825821384,3.2078,4328.4,4327.4,0.28877375]
[1756825821582,0.64351318,4328.3,4327.5,0.28878488]
[1756825821896,0.64351318,4328.2,4327.2,3.4608]
[1756825822193,3.2078,4328.4,4327.3,0.28879197]
[1756825822392,0.64350824,4328.3,4327.4,0.28879197]
[1756825822690,0.64350824,4328.2,4327.5,0.28879197]
[1756825822883,0.64350824,4328.2,4327.2,3.4608]
[1756825822884,3.2078,4328.4,4327.2,3.4608]
[1756825823083,0.64373494,4328.3,4327.3,0.28877137]
[1756825823288,0.64373494,4328.2,4326.7,3.2078]
[1756825823487,0.64365282,4328.1,4326.8,0.252]
[1756825823689,3.2078,4327.9,4326.9,0.252]
[1756825823995,0.64365282,4327.8,4326.8,0.252]
[1756825824200,0.252,4328.3,4326.8,0.252]
[1756825824392,0.64335492,4328.2,4326.8,0.252]
[1756825824695,0.64335492,4328.1,4326.8,0.48307]
[1756825824887,3.2078,4329.1,4327.7,3.2078]
[1756825825200,0.64353308,4329.0,4328.2,3.2078]
[1756825825393,3.2078,4329.1,4328.2,3.2078]
[1756825825596,3.2078,4329.1,4328.3,0.252]
[1756825825785,3.2078,4329.6,4328.3,41.052]
[1756825826094,1.63124731,4330.9,4328.3,41.052]
[1756825826095,3.2078,4330.3,4329.3,3.2078]
[1756825826596,3.2078,4330.3,4329.4,0.253]
[1756825826792,3.2078,4330.3,4329.4,0.36433771]
[1756825826985,3.2078,4330.3,4329.5,0.252]
[1756825827190,3.2078,4329.8,4329.1,0.252]
[1756825827590,0.64408886,4329.7,4328.3,40.8]
[1756825827787,3.2078,4329.3,4328.4,0.252]
[1756825827991,3.2078,4329.3,4328.5,0.252]
[1756825828398,3.2078,4329.8,4328.5,0.252]
[1756825828694,3.2078,4329.3,4328.0,3.2078]
[1756825828898,3.2078,4328.7,4328.1,0.252]
[1756825829795,3.2078,4328.7,4327.9,3.2078]
[1756825829995,3.2078,4328.2,4327.4,3.2078]
[1756825830190,3.2078,4327.7,4327.1,0.252]
[1756825830398,3.2078,4327.7,4326.8,3.2078]
[1756825830895,3.2078,4327.5,4326.0,3.2078]
[1756825831093,3.2078,4327.0,4326.0,3.2078]
[1756825831293,3.2078,4327.0,4325.9,0.46183]
[1756825831490,3.2078,4327.0,4325.9,0.20983]
[1756825831692,3.2078,4327.0,4325.9,0.46283]
[1756825831999,3.2078,4327.0,4326.0,3.2078]
[1756825832199,3.2078,4327.0,4325.9,0.20983]
[1756825832496,3.2078,4327.0,4326.0,3.4608]
[1756825833202,0.253,4326.9,4326.0,3.2078]
[1756825833401,3.2078,4326.2,4325.9,0.20983]
[1756825833696,3.4608,4326.2,4325.9,0.20983]
[1756825835295,3.2078,4326.2,4325.9,0.20983]
[1756825835693,1.22343548,4328.4,4325.9,0.20983]
[1756825835694,3.2078,4326.9,4325.9,0.20983]
[1756825836194,31.72443548,4328.7,4325.9,0.20983]
[1756825836195,3.2078,4327.4,4326.0,3.2078]
[1756825836399,3.2078,4327.1,4325.9,0.46283]
[1756825837188,3.2078,4327.1,4326.0,3.2078]
[1756825837396,3.2078,4327.1,4325.9,0.46283]
[1756825837397,3.2078,4327.1,4326.6,3.2078]
[1756825837596,3.2078,4327.8,4326.7,0.253]
[1756825837794,3.2078,4327.8,4326.6,3.2078]
[1756825837795,3.2078,4327.8,4326.8,0.253]
[1756825837996,3.2078,4327.8,4326.9,0.253]
[1756825838501,3.2078,4327.8,4326.8,0.178]
[1756825838997,32.14124731,4330.3,4326.8,0.178]
[1756825838998,3.2078,4328.6,4327.2,3.2078]
[1756825839201,3.4608,4329.2,4328.2,3.2078]
[1756825839411,3.2078,4329.2,4328.3,0.253]
[1756825839706,3.2078,4329.2,4328.2,3.2078]
[1756825839707,3.2078,4329.2,4328.4,0.253]
[1756825840001,3.2078,4329.8,4328.8,0.41579]
[1756825840197,3.2078,4329.8,4329.2,3.2078]
[1756825840398,3.2078,4329.8,4329.3,0.253]
[1756825840996,3.2078,4329.8,4328.5,44.0078]
[1756825841195,3.2078,4329.8,4329.0,3.2078]
[1756825841906,3.2078,4329.8,4328.5,44.0078]
[1756825842097,3.2078,4329.8,4328.6,0.253]
[1756825842298,3.2078,4329.8,4328.7,0.253]
[1756825842801,3.2078,4329.8,4328.8,0.253]
[1756825843505,3.2078,4329.8,4328.6,0.252]
[1756825843506,0.252,4329.7,4328.6,0.252]
[1756825844598,3.2078,4329.8,4328.6,0.252]
[1756825845000,3.2078,4329.8,4328.6,0.66781]
[1756825845197,3.2078,4329.8,4329.1,3.2078]
[1756825845403,3.2078,4330.4,4329.2,0.252]
[1756825845705,3.2078,4330.4,4329.6,3.2078]
[1756825846099,3.2078,4330.4,4329.7,0.252]
[1756825846607,3.2078,4330.4,4329.8,0.252]
[1756825846802,3.2078,4330.4,4329.6,3.2078]
[1756825847003,3.2078,4330.4,4329.7,0.252]
[1756825847405,3.2078,4330.4,4329.6,3.2078]
[1756825847703,3.2078,4329.9,4329.4,0.252]
[1756825847900,3.2078,4329.9,4329.5,0.252]
[1756825848100,3.2078,4329.9,4328.8,3.2078]
[1756825848305,3.2078,4330.5,4328.9,0.252]
[1756825848605,3.2078,4330.5,4329.3,3.62354]
[1756825848808,3.2078,4330.5,4329.4,0.252]
[1756825849305,3.2078,4331.0,4329.8,3.2078]
[1756825849608,3.2078,4331.0,4330.3,3.2078]
[1756825849807,3.2078,4331.0,4330.4,0.252]
[1756825850011,3.2078,4331.0,4330.5,0.252]
[1756825850305,3.2078,4331.0,4329.1,30.5]
[1756825850306,3.2078,4331.0,4329.5,3.2078]
[1756825850506,3.2078,4331.0,4329.6,0.252]
[1756825851105,3.2078,4331.0,4330.0,3.2078]
[1756825851405,3.2078,4331.7,4330.7,3.2078]
[1756825851604,3.2078,4331.7,4331.2,3.2078]
[1756825851806,3.2078,4331.7,4331.3,0.252]
[1756825852203,3.2078,4332.6,4331.3,0.37796534]
[1756825852804,3.2078,4332.6,4331.2,3.2078]
[1756825853009,3.2078,4332.6,4331.3,0.252]
[1756825853204,3.2078,4332.6,4331.3,0.3732921]
[1756825853404,3.2078,4332.6,4331.4,3.2078]
[1756825853799,3.2078,4332.6,4331.4,44.0078]
[1756825854214,3.2078,4332.6,4331.4,44.42334]
[1756825854408,3.2078,4332.6,4331.4,44.0078]
[1756825854605,3.2078,4332.6,4331.5,0.252]
[1756825854806,3.2078,4332.6,4331.6,0.252]
[1756825855308,3.2078,4332.6,4331.4,44.0078]
[1756825855512,3.2078,4332.6,4331.5,0.251]
[1756825855812,3.2078,4332.6,4331.6,0.251]
[1756825856209,3.2078,4331.8,4331.0,0.251]
[1756825856511,0.251,4331.7,4330.3,3.2078]
[1756825856708,3.2078,4330.4,4329.8,0.252]
[1756825856915,3.2078,4330.4,4329.9,0.252]
[1756825858010,3.2078,4331.0,4329.9,0.252]
[1756825858214,3.2078,4331.0,4330.0,0.252]
[1756825858407,3.2078,4331.0,4329.8,40.8]
[1756825858608,3.2078,4331.0,4329.9,0.252]
[1756825859512,3.2078,4331.0,4330.0,0.252]
[1756825860307,3.2078,4331.0,4329.7,3.33101777]
[1756825860815,3.2078,4331.7,4330.7,3.2078]
[1756825861016,3.2078,4331.7,4330.8,0.251]
[1756825861222,3.2078,4331.7,4331.2,3.2078]
[1756825861522,3.2078,4331.7,4331.0,0.251]
[1756825861719,3.2078,4331.1,4330.1,30.488]
[1756825861911,3.2078,4331.1,4330.2,0.251]
[1756825862117,3.2078,4331.1,4330.3,0.251]
[1756825862420,3.2078,4331.1,4330.2,0.251]
[1756825862816,3.2078,4331.1,4330.3,0.251]
[1756825863223,3.2078,4330.6,4330.3,0.251]
[1756825863419,3.4588,4331.1,4330.3,0.251]
[1756825863615,3.2078,4331.1,4330.3,0.251]
[1756825863817,3.2078,4331.7,4330.5,3.2078]
[1756825864125,3.2078,4330.7,4330.1,0.252]
[1756825864314,3.2078,4330.7,4329.4,3.2078]
[1756825864521,1.63124731,4332.9,4329.4,3.2078]
[1756825864522,3.2078,4330.1,4329.4,3.2078]
[1756825864711,3.2078,4329.5,4329.3,0.252]
[1756825865316,3.2078,4330.1,4329.3,0.252]
[1756825865718,3.2078,4329.6,4329.0,0.252]
[1756825866120,0.252,4330.4,4329.0,0.66778]
[1756825866519,0.252,4330.4,4329.5,3.2078]
[1756825866722,0.252,4330.4,4329.0,0.252]
[1756825867227,3.2078,4330.0,4329.1,0.251]
[1756825867426,3.2078,4329.5,4329.1,0.251]
[1756825868222,3.2078,4329.5,4329.2,0.251]
[1756825868424,3.2078,4329.5,4328.7,3.2078]
[1756825868727,3.2078,4329.5,4328.8,0.251]
[1756825868920,3.2078,4329.5,4328.7,3.2078]
[1756825869428,3.2078,4329.5,4328.8,0.251]
[1756825869927,3.2078,4329.5,4328.7,3.2078]
[1756825870222,3.2078,4329.5,4328.2,3.2078]
[1756825870429,3.2078,4328.5,4327.7,3.2078]
[1756825870820,3.2078,4329.0,4327.8,0.251]
[1756825871022,0.64659756,4328.9,4327.8,0.251]
[1756825871228,3.4588,4329.0,4327.8,0.251]
[1756825871421,3.4588,4329.0,4327.2,0.12342122]
[1756825871422,3.2078,4328.4,4327.2,3.2078]
[1756825871721,3.2078,4327.9,4327.3,0.251]
[1756825872128,3.2078,4327.9,4327.2,3.2078]
[1756825872324,3.2078,4327.9,4327.3,0.251]
[1756825872926,3.2078,4327.9,4326.3,3.2078]
[1756825873137,3.2078,4327.3,4326.4,0.251]
[1756825873431,3.2078,4328.0,4326.9,3.2078]
[1756825873629,3.2078,4328.0,4327.0,0.251]
[1756825874127,3.2078,4328.0,4326.9,3.2078]
[1756825874323,3.2078,4328.0,4327.0,0.251]
[1756825874836,3.2078,4329.0,4327.4,3.2078]
[1756825875126,3.2078,4329.0,4328.0,3.2078]
[1756825875331,3.2078,4329.5,4328.5,3.2078]
[1756825875532,3.2078,4329.5,4327.1,1.03988]
[1756825875533,3.2078,4329.5,4328.0,3.2078]
[1756825875730,3.2078,4329.5,4328.6,0.251]
[1756825876823,3.2078,4329.5,4328.7,0.251]
[1756825877024,3.2078,4329.5,4327.9,3.2078]
[1756825877226,3.2078,4329.5,4328.0,0.251]
[1756825877432,3.2078,4329.5,4328.1,40.8]
[1756825878027,3.2078,4329.5,4328.4,3.2078]
[1756825878335,3.2078,4329.5,4328.9,3.2078]
[1756825878927,3.2078,4329.5,4327.6,3.2078]
[1756825879122,3.2078,4329.0,4327.6,3.2078]
[1756825879326,3.2078,4327.7,4326.9,3.2078]
[1756825879526,3.2078,4328.2,4326.9,3.2078]
[1756825879726,3.2078,4327.7,4326.9,3.2078]
[1756825879927,3.2078,4328.4,4326.9,3.2078]
[1756825880337,3.2078,4327.7,4326.9,3.4588]
[1756825881834,3.2078,4327.7,4327.0,0.251]
[1756825882231,3.2078,4328.3,4327.0,0.251]
[1756825882537,3.2078,4328.3,4327.0,3.2078]
[1756825882737,3.2078,4328.3,4327.1,0.251]
[1756825883938,3.2078,4328.3,4327.5,3.2078]
[1756825884134,3.2078,4328.3,4327.6,0.251]
[1756825884333,3.2078,4328.3,4326.9,3.2078]
[1756825884635,3.3203,4328.9,4327.9,3.2078]
[1756825884840,3.3203,4328.9,4328.0,0.251]
[1756825885437,0.1125,4328.9,4328.5,3.2078]
[1756825885640,0.1125,4328.9,4328.6,0.251]
[1756825885827,0.1125,4328.9,4328.5,3.2078]
[1756825886236,0.1125,4328.9,4328.0,3.2078]
[1756825886437,0.1125,4328.9,4328.1,0.251]
[1756825887438,0.1125,4328.9,4328.0,3.2078]
[1756825887638,0.1125,4328.9,4328.1,0.251]
[1756825887838,0.1125,4328.9,4327.3,3.62374]
[1756825888135,0.1125,4328.9,4326.8,40.8]
[1756825888136,0.1125,4328.9,4328.2,0.41585]
[1756825888333,0.1125,4328.9,4328.5,3.2078]
[1756825889234,0.1125,4328.9,4328.6,0.251]
[1756825889439,0.12534038,4330.8,4328.6,4.251]
[1756825889440,3.2078,4330.1,4328.6,4.251]
[1756825889737,3.33314038,4330.8,4329.4,3.2078]
[1756825889934,3.2078,4330.8,4329.5,0.251]
[1756825890440,3.2078,4330.8,4329.5,0.37660151]
[1756825890632,0.0035,4330.7,4329.6,0.251]
[1756825890842,0.0035,4330.7,4330.3,3.2078]
[1756825891032,0.0035,4330.7,4330.4,0.251]
[1756825891232,0.0035,4330.7,4330.3,3.2078]
[1756825891430,0.0035,4330.7,4330.4,0.251]
[1756825891636,0.0035,4330.7,4330.5,0.251]
[1756825891941,0.0035,4330.7,4330.6,40.8]
[1756825892634,0.0035,4330.7,4330.6,44.8]
[1756825893231,3.2078,4332.6,4330.6,45.03091]
[1756825893434,3.2078,4332.6,4331.9,3.2078]
[1756825893636,3.2078,4332.6,4332.0,0.251]
[1756825893840,3.2078,4333.3,4332.0,0.251]
[1756825894037,3.2078,4333.3,4332.4,3.2078]
[1756825894241,3.2078,4333.3,4332.5,0.251]
[1756825894438,3.2078,4333.3,4332.4,3.2078]
[1756825894640,3.2078,4333.3,4332.5,0.251]
[1756825894941,3.2078,4333.3,4332.6,0.251]
[1756825895543,3.2078,4333.9,4332.9,3.2078]
[1756825895742,3.2078,4333.9,4333.0,0.251]
[1756825896143,3.2078,4333.9,4333.1,0.25]
[1756825898744,3.2078,4333.9,4333.2,0.25]
[1756825898947,3.2078,4333.9,4333.3,0.25]
[1756825899145,3.2078,4333.9,4333.2,0.25]
[1756825899647,3.2078,4333.9,4333.0,0.25]
[1756825900040,3.2078,4333.9,4332.9,3.2078]
[1756825900246,3.2078,4333.4,4332.9,0.25]
[1756825900444,3.2078,4333.4,4332.2,0.12526643]
[1756825900643,3.2078,4333.4,4332.3,0.25]
[1756825901144,3.2078,4333.4,4332.4,0.25]
[1756825901345,3.2078,4333.4,4332.5,0.25]
[1756825901641,3.2078,4332.8,4332.1,3.2078]
[1756825902635,3.2078,4333.6,4332.6,3.2078]
[1756825902839,3.2078,4333.6,4332.7,0.25]
[1756825903351,3.2078,4333.6,4332.7,0.66542]
[1756825903649,3.2078,4334.3,4333.1,3.2078]
[1756825903841,3.2078,4334.3,4333.2,0.25]
[1756825904442,3.2078,4334.3,4333.1,3.2078]
[1756825904642,3.2078,4334.3,4333.2,0.25]
[1756825905750,3.2078,4334.3,4333.3,0.25]
[1756825907150,3.2078,4334.3,4333.4,0.41535]
[1756825907343,3.2078,4334.3,4333.6,3.2078]
[1756825907547,3.2078,4334.8,4333.6,3.2078]
[1756825907752,3.2078,4334.8,4334.2,3.2078]
[1756825908050,3.2078,4334.8,4334.3,0.25]
[1756825909046,3.2078,4334.8,4334.3,0.38879724]
[1756825909240,3.2078,4334.8,4334.3,0.13879724]
[1756825909444,3.2078,4334.8,4334.4,0.25]
[1756825909843,3.2078,4334.8,4334.5,0.25]
[1756825910449,30.475,4336.9,4334.5,0.25]
[1756825910450,3.2078,4335.7,4334.7,3.2078]
[1756825910650,3.2078,4335.7,4334.8,40.8]
[1756825910952,3.2078,4335.7,4334.9,0.25]
[1756825911852,3.2078,4335.7,4335.0,0.25]
[1756825912249,3.2078,4335.7,4335.1,0.25]
[1756825912652,3.2078,4335.7,4335.2,0.25]
[1756825912955,3.2078,4335.7,4335.3,0.25]
[1756825913146,3.2078,4335.7,4335.4,0.25]
[1756825914055,3.2078,4335.7,4335.5,0.25]
[1756825914243,3.2078,4336.3,4334.7,44.0078]
[1756825914447,3.2078,4336.3,4334.8,0.25]
[1756825914647,3.43845001,4336.3,4334.9,0.25]
[1756825914855,3.43845001,4336.3,4335.0,0.25]
[1756825915354,3.43845001,4336.3,4334.7,44.0078]
[1756825915355,0.63556152,4336.2,4334.7,44.0078]
[1756825915548,0.63556152,4336.1,4334.7,3.2078]
[1756825915748,3.43845001,4336.3,4334.8,0.25]
[1756825915749,3.2078,4335.8,4334.8,0.25]
[1756825915946,3.2078,4335.8,4334.4,40.8]
[1756825916249,3.2078,4335.3,4334.4,0.25]
[1756825916450,0.63579925,4335.2,4334.4,0.25]
[1756825916651,3.2078,4335.3,4334.4,0.25]
[1756825916953,3.2078,4335.3,4334.5,0.25]
[1756825917252,0.63747218,4335.2,4334.1,3.2078]
[1756825917453,0.63747218,4335.1,4334.1,3.2078]
[1756825917657,0.63747218,4335.0,4334.2,0.25]
[1756825917855,0.63747218,4334.9,4334.3,0.25]
[1756825918054,3.2078,4335.3,4334.3,0.25]
[1756825918359,0.63734701,4335.2,4334.3,0.25]
[1756825918555,3.2078,4334.7,4333.4,3.2078]
[1756825918746,0.63734701,4334.6,4333.5,0.25]
[1756825919161,0.63734701,4334.6,4333.4,3.2078]
[1756825919354,0.63734701,4334.5,4333.5,0.25]
[1756825919555,0.63734701,4334.4,4333.4,3.2078]
[1756825919758,3.2078,4334.2,4333.4,0.25]
[1756825919951,3.2078,4334.2,4332.9,3.2078]
[1756825919952,0.63734701,4334.1,4332.9,3.2078]
[1756825920153,0.63734701,4334.1,4333.0,0.25]
[1756825920356,0.63734701,4334.0,4332.9,3.34080981]
[1756825920555,0.63734701,4333.9,4333.0,0.25]
[1756825920858,0.63734701,4333.8,4333.1,0.25]
[1756825921057,0.63734701,4333.7,4332.9,3.2078]
[1756825921258,4.43123548,4333.5,4332.9,3.2078]
[1756825921562,1.22343548,4333.3,4332.9,3.2078]
[1756825921755,1.86078249,4333.2,4332.4,30.711]
[1756825921950,0.63734701,4333.1,4332.4,30.711]
[1756825922156,1.22343548,4333.2,4332.4,30.711]
[1756825922157,0.63734701,4333.0,4332.4,30.711]
[1756825922361,0.63734701,4332.9,4332.5,0.25]
[1756825922561,1.86078249,4332.8,4332.1,3.2078]
[1756825922756,0.63734701,4332.7,4331.6,3.2078]
[1756825922959,0.63734701,4332.6,4332.1,3.2078]
[1756825923160,0.63734701,4332.5,4332.2,0.25]
[1756825923460,0.63734701,4332.4,4332.2,0.25]
[1756825923667,0.63734701,4332.3,4332.1,3.2078]
[1756825923858,3.2078,4333.2,4332.2,0.25]
[1756825924052,0.63205304,4333.1,4332.2,0.25]
[1756825924264,0.63205304,4333.0,4332.7,3.2078]
[1756825924564,0.63205304,4332.9,4332.2,3.2078]
[1756825924756,0.63205304,4332.8,4332.3,0.25]
[1756825924957,0.63205304,4332.7,4332.4,0.25]
[1756825925162,0.63205304,4332.6,4332.4,0.25]
[1756825925464,0.63205304,4332.5,4332.4,0.25]
[1756825925665,0.63205304,4332.5,4332.2,3.2078]
[1756825925859,0.63205304,4332.4,4332.2,3.2078]
[1756825926157,0.63205304,4332.3,4332.2,3.2078]
[1756825926762,4.63205304,4332.3,4331.8,0.25]
[1756825926959,0.63205304,4332.2,4331.6,3.2078]
[1756825927166,0.63205304,4332.1,4331.6,3.2078]
[1756825927366,0.63205304,4332.0,4331.6,3.2078]
[1756825927570,0.63205304,4331.9,4331.6,3.2078]
[1756825927768,0.63205304,4331.8,4331.6,3.2078]
[1756825927965,0.62898419,4331.7,4331.3,0.20933]
[1756825928270,0.62898419,4331.6,4331.3,0.20933]
[1756825928564,3.2078,4331.4,4330.4,0.187]
[1756825928764,0.62898419,4331.5,4330.4,0.187]
[1756825928765,3.2078,4330.8,4330.4,0.187]
[1756825928961,0.62898419,4330.7,4330.4,0.187]